fUSD/lending_fUSD_20240224
["ID","MTS","AMOUNT","RATE_DAILY","PERIOD"]
[315062186,1708799441070,-955.0,0.00025602,2]
[315062188,1708799441079,-1283.18555205,0.0002561,2]
[315062190,1708799441089,-4144.22,0.0002569,2]
[315062193,1708799441098,-158.4,0.00025765,2]
[315062194,1708799441108,-1283.18555205,0.00025775,2]
[315062197,1708799441119,-177.78,0.00025823,2]
[315062199,1708799441130,-415.99674719,0.0002583,2]
[315062201,1708799441139,-1144.25,0.00025889,2]
[315062203,1708799441148,-1000.0,0.00025999,2]
[315062205,1708799441157,-500.0,0.00026,2]
[315062207,1708799441166,-500.0,0.00026,2]
[315062209,1708799441176,-500.0,0.00026,2]
[315062211,1708799441185,-500.0,0.00026,2]
[315062213,1708799441194,-500.0,0.00026,2]
[315062215,1708799441203,-500.0,0.00026,2]
[315062217,1708799441213,-500.0,0.00026,2]
[315062219,1708799441221,-500.0,0.00026,2]
[315062221,1708799441230,-500.0,0.00026,2]
[315062223,1708799441239,-500.0,0.00026,2]
[315062225,1708799441248,-500.0,0.00026,2]
[315062227,1708799441258,-500.0,0.00026,2]
[315062229,1708799441267,-500.0,0.00026,2]
[315062231,1708799441276,-500.0,0.00026,2]
[315062233,1708799441285,-500.0,0.00026,2]
[315062235,1708799441293,-500.0,0.00026,2]
[315062237,1708799441303,-500.0,0.00026,2]
[315062239,1708799441312,-500.0,0.00026,2]
[315062241,1708799441320,-500.0,0.00026,2]
[315062243,1708799441329,-500.0,0.00026,2]
[315062245,1708799441338,-564.7,0.00026,2]
[315062247,1708799441347,-500.0,0.00026,2]
[315062249,1708799441356,-500.0,0.00026,2]
[315062251,1708799441367,-500.0,0.00026,2]
[315062253,1708799441376,-500.0,0.00026,2]
[315062255,1708799441385,-500.0,0.00026,2]
[315062257,1708799441394,-500.0,0.00026,2]
[315062259,1708799441403,-500.0,0.00026,2]
[315062261,1708799441412,-500.0,0.00026,2]
[315062262,1708799441421,-1000.0,0.00026,2]
[315062265,1708799441430,-500.0,0.00026,2]
[315062266,1708799441439,-500.0,0.00026,2]
[315062269,1708799441451,-500.0,0.00026,2]
[315062271,1708799441460,-500.0,0.00026,2]
[315062273,1708799441470,-500.0,0.00026,2]
[315062275,1708799441479,-500.0,0.00026,2]
[315062277,1708799441488,-500.0,0.00026,2]
[315062279,1708799441496,-500.0,0.00026,2]
[315062281,1708799441505,-500.0,0.00026,2]
[315062282,1708799441514,-500.0,0.00026,2]
[315062285,1708799441523,-500.0,0.00026,2]
[315062286,1708799441532,-500.0,0.00026,2]
[315062288,1708799441542,-500.0,0.00026,2]
[315062291,1708799441551,-500.0,0.00026,2]
[315062293,1708799441560,-500.0,0.00026,2]
[315062295,1708799441570,-500.0,0.00026,2]
[315062297,1708799441578,-500.0,0.00026,2]
[315062299,1708799441588,-500.0,0.00026,2]
[315062301,1708799441597,-500.0,0.00026,2]
[315062303,1708799441606,-500.0,0.00026,2]
[315062305,1708799441617,-500.0,0.00026,2]
[315062307,1708799441626,-500.0,0.00026,2]
[315062309,1708799441635,-500.0,0.00026,2]
[315062311,1708799441644,-500.0,0.00026,2]
[315062313,1708799441653,-500.0,0.00026,2]
[315062315,1708799441662,-500.0,0.00026,2]
[315062317,1708799441671,-500.0,0.00026,2]
[315062319,1708799441680,-500.0,0.00026,2]
[315062321,1708799441689,-500.0,0.00026,2]
[315062323,1708799441698,-500.0,0.00026,2]
[315062325,1708799441706,-500.0,0.00026,2]
[315062350,1708799441938,-469.36,0.00026,2]
[315062353,1708799441960,-500.0,0.00026,2]
[315062355,1708799441970,-500.0,0.00026,2]
[315062357,1708799441979,-500.0,0.00026,2]
[315062359,1708799441987,-387.21,0.00026,2]
[315062361,1708799441996,-500.0,0.00026,2]
[315062363,1708799442005,-500.0,0.00026,2]
[315062365,1708799442014,-500.0,0.00026,2]
[315062367,1708799442023,-500.0,0.00026,2]
[315062369,1708799442032,-500.0,0.00026,2]
[315062371,1708799442040,-500.0,0.00026,2]
[315062372,1708799442050,-500.0,0.00026,2]
[315062373,1708799442059,-500.0,0.00026,2]
[315062374,1708799442068,-500.0,0.00026,2]
[315062375,1708799442077,-500.0,0.00026,2]
[315062376,1708799442086,-500.0,0.00026,2]
[315062377,1708799442095,-500.0,0.00026,2]
[315062378,1708799442103,-500.0,0.00026,2]
[315062379,1708799442114,-500.0,0.00026,2]
[315062380,1708799442123,-551.95,0.00026,2]
[315062381,1708799442132,-1283.18555205,0.00026079,2]
[315062382,1708799442141,-150.0,0.00026079,2]
[315062384,1708799442150,-158.4,0.00026118,2]
[315062386,1708799442158,-415.99674719,0.00026159,3]
[315062388,1708799442167,-1000.0,0.000262,2]
[315062390,1708799442176,-155.21,0.00026204,2]
[315062392,1708799442185,-150.0,0.00026232,2]
[315062394,1708799442197,-150.0,0.00026252,2]
[315062396,1708799442207,-190.6451707,0.00026265,2]
[315062398,1708799442216,-226604.64553578,0.00026275,5]
[315062400,1708799442224,-150.0,0.00026286,2]
[315062402,1708799442233,-64586.66738135,0.00026289,5]
[315062404,1708799442242,-414.83657959,0.0002629,5]
[315062406,1708799442251,-4582.86811391,0.00026291,5]
[315062408,1708799442259,-169.917063,0.00026295,5]
[315062412,1708799442268,-265.49541094,0.00026298,5]
[315062414,1708799442277,-150.0,0.00026301,2]
[315062416,1708799442286,-150.0,0.00026332,2]
[315062418,1708799442294,-290.64692092,0.00026361,2]
[315062420,1708799442304,-537.17279755,0.00026361,2]
[315062422,1708799442313,-177.78,0.00026371,2]
[315062424,1708799442321,-150.0,0.00026382,2]
[315062426,1708799442330,-150.0,0.00026395,2]
[315062428,1708799442339,-5000.0,0.00026398,2]
[315062430,1708799442348,-3701.27285981,0.00026399,2]
[315062432,1708799442356,-6535.97057347,0.00026399,2]
[315062433,1708799442366,-506.89040472,0.00026419,2]
[315062435,1708799442375,-192.43666526,0.0002645,2]
[315062437,1708799442383,-318394.04776124,0.00026461,4]
[315062441,1708799442408,-146048.48465407,0.00026461,4]
[315062502,1708799442946,-818.08,0.00024418,2]
[315062504,1708799442955,-250.0,0.00024658,2]
[315062506,1708799442967,-150.0,0.00025823,2]
[315062508,1708799442976,-150.0,0.00025969,2]
[315062510,1708799442985,-150.0,0.00025992,2]
[315062512,1708799442994,-150.0,0.00026068,2]
[315062514,1708799443004,-1276.78242924,0.00026419,2]
[315062725,1708799445504,-150.0,0.00026027,2]
[315062726,1708799445514,-761.13,0.00026265,2]
[315062727,1708799445523,-283.847585,0.00026419,2]
[315062728,1708799445535,-746.87241502,0.00026419,2]
[315062729,1708799445552,-261.5830572,0.00026419,2]
[315062730,1708799445561,-1377.1669428,0.00026461,4]
[315062955,1708799764617,151.0,0.00028355,120]
[315062957,1708800087567,151.0,0.00028443,120]
[315062959,1708800214062,206.0,0.00022113,2]
[315062961,1708800291024,414.65,0.00022041,2]
[315063682,1708800584441,2155.93154842,0.0002206,2]
[315063683,1708800618108,150.0,0.0002195,15]
[315063689,1708800631575,-300.0,0.00022501,2]
[315063690,1708800631585,-23.75358582,0.00023612,2]
[315063691,1708800631597,-3408.98825918,0.00023612,2]
[315063692,1708800631606,-167.06869952,0.00023665,2]
[315063693,1708800631615,-150.0,0.00023765,2]
[315063694,1708800631624,-312.59,0.00023856,2]
[315063695,1708800631634,-2000.0,0.00023863,2]
[315063696,1708800631643,-250.0,0.00023876,2]
[315063697,1708800631653,-200.0,0.00023877,2]
[315063698,1708800631662,-46.0371354,0.00023894,2]
[315063699,1708800631698,-153.9628646,0.00023894,2]
[315063700,1708800631708,-200.0,0.0002391,2]
[315063701,1708800631717,-150.0,0.00023959,2]
[315063702,1708800631727,-150.0,0.00023973,2]
[315063703,1708800631736,-1245.79818695,0.00023973,2]
[315063704,1708800631748,-2462.56452739,0.00023973,2]
[315063705,1708800631760,-862.90197581,0.00023973,2]
[315063706,1708800631776,-14421.82530985,0.00023973,2]
[315063707,1708800631785,-500.0,0.00023988,2]
[315063708,1708800631795,-1727.66352799,0.00023993,2]
[315063709,1708800631806,-115.24647201,0.00023993,2]
[315063710,1708800631816,-500.0,0.00023999,2]
[315063711,1708800631825,-894.48,0.00024017,2]
[315063712,1708800631835,-676.9561,0.00024024,2]
[315063713,1708800631844,-155.21,0.00024051,2]
[315063714,1708800631853,-177.78,0.00024127,2]
[315063715,1708800631863,-9226.22,0.00024151,2]
[315063716,1708800631872,-167.0686995,0.00024232,2]
[315063717,1708800631882,-156.17,0.00024281,2]
[315063718,1708800631891,-414.65,0.00024305,2]
[315063719,1708800631901,-2117.63,0.00024344,2]
[315063720,1708800631910,-732.4,0.00024384,2]
[315063722,1708800631919,-987.14,0.00024386,2]
[315063724,1708800631929,-1000.0,0.00024404,2]
[315063726,1708800631938,-206.0,0.00024558,2]
[315063728,1708800631948,-250.0,0.00024658,2]
[315063730,1708800631957,-177.78,0.00024675,2]
[315063732,1708800631966,-249.56,0.00024744,2]
[315063734,1708800631975,-160.86242431,0.00024799,2]
[315063737,1708800631987,-6.20627519,0.00024799,2]
[315063739,1708800631996,-891.15199867,0.00025,3]
[315063750,1708800632091,-358.84800133,0.00025,3]
[315063752,1708800632100,-156.17,0.0002509,2]
[315063754,1708800632109,-9078.912,0.0002509,2]
[315063756,1708800632119,-4593.0,0.000251,2]
[315063758,1708800632128,-177.78,0.00025223,2]
[315063760,1708800632137,-167.0686995,0.00025366,2]
[315063762,1708800632147,-423.89,0.00025376,2]
[315063764,1708800632156,-314.49,0.00025376,2]
[315063766,1708800632165,-344.56,0.00025376,2]
[315063768,1708800632175,-150.0,0.00025376,2]
[315063770,1708800632184,-423.89,0.00025376,2]
[315063772,1708800632192,-344.56,0.00025376,2]
[315063774,1708800632201,-150.0,0.00025376,2]
[315063776,1708800632210,-23040.0,0.00025418,2]
[315063778,1708800632219,-173.77,0.00025468,2]
[315063780,1708800632228,-285.62,0.000255,2]
[315063781,1708800632237,-894.48,0.00025661,2]
[315063784,1708800632246,-344.56,0.00025678,2]
[315063785,1708800632255,-825.21241926,0.00025678,2]
[315063788,1708800632271,-296.27306322,0.00025678,2]
[315063791,1708800632290,-2565.39001752,0.00025678,2]
[315063793,1708800632299,-177.78,0.00025771,2]
[315063795,1708800632309,-955.0,0.00025778,2]
[315063797,1708800632318,-240.90251486,0.00025778,2]
[315063800,1708800632337,-469.09748514,0.00025778,2]
[315063802,1708800632348,-534.0,0.00025778,2]
[315063804,1708800632358,-1453.0,0.00025778,2]
[315063806,1708800632367,-150.0,0.00025778,2]
[315063807,1708800632377,-3700.462,0.00025778,2]
[315063809,1708800632386,-2293.0,0.00025778,2]
[315063811,1708800632395,-8175.0,0.00025778,2]
[315063813,1708800632404,-3293.77364425,0.00025778,2]
[315063816,1708800632416,-16580.22635575,0.00025778,2]
[315063818,1708800632426,-264.4,0.00025778,2]
[315063820,1708800632436,-2931.0,0.00025778,2]
[315063822,1708800632445,-156.17,0.000259,2]
[315063824,1708800632454,-1557.5088,0.000259,2]
[315063826,1708800632463,-2500.0,0.000259,2]
[315063828,1708800632472,-167.0686995,0.00025933,2]
[315063830,1708800632482,-2155.93154842,0.00025999,2]
[315063832,1708800632491,-5000.0,0.00026,2]
[315063834,1708800632500,-5000.0,0.00026,2]
[315063836,1708800632510,-5000.0,0.00026,2]
[315063837,1708800632519,-1283.0,0.00026,2]
[315063839,1708800632528,-18502.93245093,0.00026,2]
[315063842,1708800632541,-577.89161795,0.00026,2]
[315063845,1708800632561,-831.08676725,0.00026,2]
[315063847,1708800632574,-7048.38946821,0.00026,2]
[315063849,1708800632586,-358.85125374,0.00026,2]
[315063851,1708800632598,-954.99232549,0.00026,2]
[315063864,1708800639272,-1871.43237019,0.00026,2]
[315063865,1708800639334,-250.0,0.00025778,2]
[315063866,1708800639344,-353.45575644,0.00026,2]
[315063867,1708800639358,-48505.6279898,0.00026,2]
[315063868,1708800639368,-155.0,0.00026,2]
[315063869,1708800639378,-1283.18555205,0.00026013,2]
[315063870,1708800639387,-150.0,0.00026077,2]
[315063871,1708800639397,-150.0,0.00026079,2]
[315063872,1708800639407,-5769.0,0.00026134,2]
[315063873,1708800639416,-1283.18555205,0.00026147,2]
[315063874,1708800639425,-600.0,0.00026171,2]
[315063875,1708800639436,-287.0,0.00026171,2]
[315063876,1708800639445,-3541.5528,0.00026187,2]
[315063877,1708800639454,-150.0,0.00026197,2]
[315063878,1708800639464,-423.89,0.00026197,2]
[315063879,1708800639473,-823.06,0.00026197,2]
[315063880,1708800639483,-150.0,0.00026197,2]
[315063881,1708800639492,-423.89,0.00026197,2]
[315063882,1708800639501,-423.89,0.00026197,2]
[315063883,1708800639511,-203.87,0.00026197,2]
[315063884,1708800639520,-150.0,0.00026197,2]
[315063885,1708800639529,-150.0,0.00026203,2]
[315063887,1708800639539,-742.2,0.00026228,2]
[315063889,1708800639548,-2151.970749,0.00026287,5]
[315063891,1708800639558,-177.78,0.00026319,2]
[315063893,1708800639567,-38678.5818,0.00026361,2]
[315063895,1708800639576,-259.99796702,0.00026361,3]
[315063897,1708800639586,-1000.0,0.00026459,2]
[315063899,1708800639596,-99819.13717617,0.0002646,2]
[315063901,1708800639605,-8890.22756987,0.00026461,2]
[315063908,1708800639669,-25786.354182,0.00026461,2]
[315063911,1708800639683,-9851.17968426,0.00026461,2]
[315063918,1708800639740,-1267.65875993,0.00026461,2]
[315063920,1708800639753,-3148.43130844,0.00026461,2]
[315063922,1708800639765,-1050.55056104,0.00026461,2]
[315063924,1708800639776,-5.59793446,0.00026461,2]
[315063926,1708800639785,-3136.9728165,0.00026461,2]
[315063929,1708800639797,-878.62781678,0.00026461,2]
[315063933,1708800639828,-24070.49876998,0.00026461,2]
[315063938,1708800639868,-910.035438,0.00026461,2]
[315063939,1708800639892,-6654.78886766,0.00026461,2]
[315063940,1708800639903,-575.58435544,0.00026461,2]
[315063941,1708800639914,-2276.74087395,0.00026461,2]
[315063944,1708800640900,-704.35416154,0.00026461,2]
[315063945,1708800640950,-1494.27656368,0.00026461,2]
[315063946,1708800640963,-500.0,0.00026461,2]
[315063947,1708800640995,-7434.41195352,0.00026461,2]
[315063948,1708800641008,-1363.70838295,0.00026461,2]
[315063949,1708800641020,-50000.0,0.00026461,2]
[315063950,1708800641031,-29097.87374113,0.00026461,2]
[315063951,1708800641042,-50000.0,0.00026461,2]
[315063952,1708800641054,-26435.55073218,0.00026461,2]
[315063953,1708800641064,-50000.0,0.00026461,2]
[315063954,1708800641074,-50000.0,0.00026461,2]
[315063955,1708800641085,-42552.61360539,0.00026461,2]
[315063956,1708800641095,-200.0,0.00026461,2]
[315063957,1708800641106,-22080.37250037,0.00026461,2]
[315063958,1708800641117,-21523.94256148,0.00026461,2]
[315063959,1708800641128,-17588.24684403,0.00026461,2]
[315063960,1708800641138,-158.4,0.0002647,2]
[315063961,1708800641150,-151.99980834,0.00026481,2]
[315063962,1708800641161,-232.51753672,0.00026481,2]
[315063963,1708800641171,-5991.30635895,0.000265,2]
[315063964,1708800641185,-239.23297225,0.000265,2]
[315063965,1708800641195,-305.80716742,0.000265,2]
[315063966,1708800641206,-7911.24288511,0.000265,2]
[315063967,1708800641216,-278.97505234,0.000265,2]
[315063968,1708800641226,-167.0686995,0.000265,2]
[315063969,1708800641235,-3103.64858169,0.000265,2]
[315063970,1708800641244,-1712.72365764,0.000265,2]
[315063971,1708800641254,-525.2266491,0.000265,2]
[315063972,1708800641264,-2075.233504,0.0002652,2]
[315063973,1708800641278,-3112.850257,0.0002652,2]
[315063974,1708800641287,-259.99796699,0.00026567,3]
[315063975,1708800641297,-414.65,0.00026569,2]
[315063976,1708800641307,-600.1,0.00026575,2]
[315063977,1708800641318,-5000.0,0.00026581,2]
[315063978,1708800641328,-3017.35,0.00026591,2]
[315063979,1708800641338,-5004.84,0.00026591,2]
[315063980,1708800641349,-2827.61,0.00026591,2]
[315063981,1708800641360,-4685.88,0.00026591,2]
[315063982,1708800641370,-1052.38511691,0.00026598,2]
[315063983,1708800641380,-96663.30518728,0.000266,4]
[315063984,1708800641390,-3000.0,0.000266,2]
[315063985,1708800641400,-5362.519208,0.0002661,2]
[315063986,1708800641410,-5991.30635894,0.00026618,2]
[315063987,1708800641420,-1283.18555205,0.00026631,2]
[315063988,1708800641429,-42810.20449999,0.00026681,2]
[315063989,1708800641446,-362.8258623,0.00026681,2]
[315063990,1708800641458,-6826.96963771,0.00026681,2]
[315063991,1708800641467,-3749.47924144,0.00026681,2]
[315063992,1708800641492,-1423.47518049,0.00026681,2]
[315063993,1708800641504,-619.83504818,0.00026681,2]
[315063994,1708800641516,-44207.21052989,0.00026681,2]
[315063995,1708800641526,-50000.0,0.00026681,2]
[315063996,1708800641535,-151.0,0.00026681,7]
[315063997,1708800641545,-150.0,0.00026681,2]
[315063998,1708800641555,-500.0,0.00026689,2]
[315063999,1708800641564,-500.0,0.00026689,2]
[315064000,1708800641574,-163.25843974,0.00026689,2]
[315064001,1708800641583,-703834.36915917,0.0002669,4]
[315064002,1708800641607,-8821.75096878,0.0002669,4]
[315064003,1708800641621,-13712.33841142,0.0002669,4]
[315064004,1708800641635,-5988.89797761,0.0002669,4]
[315064005,1708800641966,-383.57266039,0.00025778,2]
[315064006,1708800641977,-526.88568746,0.00025778,2]
[315064009,1708800642692,-250.1184301,0.00025492,2]
[315064010,1708800642865,-5899.3415699,0.00025492,2]
[315064011,1708800642875,-127.54165215,0.00025778,2]
[315064012,1708800642884,-36035.11128879,0.0002669,4]
[315064013,1708800642925,-2955.49895234,0.0002669,4]
[315064014,1708800642938,-7635.43209166,0.0002669,4]
[315064015,1708800642950,-3505.28111651,0.0002669,4]
[315064154,1708800645691,-150.0,0.00025778,2]
[315064156,1708800645700,-7547.17100554,0.0002669,4]
[315064159,1708800645712,-10318.84116214,0.0002669,4]
[315064742,1708800660657,19509.2992,0.00022401,2]
[315064743,1708800767134,5865.60569815,0.00025,7]
[315064744,1708800840637,3950.0,0.0002,2]
[315064745,1708800853060,1000.0,0.000135,2]
[315064746,1708800853102,4640.40134928,0.0002,2]
[315064748,1708800931394,151.0,0.00028698,120]
[315064749,1708801238593,375.21,0.00022441,2]
[315064750,1708801249284,329.90849454,0.00022329,2]
[315064751,1708801292946,177.78,0.00022,2]
[315064752,1708801304416,151.0,0.00028643,120]
[315064753,1708801304525,257.80295274,0.0002189,15]
[315064782,1708801595172,206.0,0.00021558,2]
[315064784,1708801764739,151.0,0.00028732,120]
[315064785,1708801803072,150.0,0.00021558,2]
[315064786,1708801803259,196.02825457,0.00021558,2]
[315064794,1708801832491,-177.78,0.00022548,2]
[315064795,1708801832501,-397.39710851,0.00022998,2]
[315064796,1708801832513,-994.76614342,0.00022998,2]
[315064797,1708801832523,-150.0,0.00022999,2]
[315064798,1708801832533,-137.26203865,0.00023,2]
[315064799,1708801832544,-4236.17914182,0.00023,2]
[315064800,1708801832556,-402.03,0.00023,2]
[315064822,1708801832801,-44381.78442395,0.00023,2]
[315064824,1708801832815,-205.45584306,0.00023096,2]
[315064826,1708801832824,-166.19,0.00024051,2]
[315064828,1708801832834,-1000.0,0.00024065,2]
[315064830,1708801832844,-11499.23,0.00024077,2]
[315064832,1708801832853,-5317.68,0.00024087,2]
[315064834,1708801832863,-159.89,0.00024103,2]
[315064836,1708801832872,-250.0,0.0002411,2]
[315064838,1708801832882,-1476.62,0.00024115,2]
[315064840,1708801832891,-2866.46,0.00024126,2]
[315064842,1708801832900,-200.0,0.00024127,2]
[315064844,1708801832909,-314.46,0.00024139,2]
[315064846,1708801832918,-2000.0,0.00024173,2]
[315064848,1708801832928,-159.9,0.00024315,2]
[315064850,1708801832938,-1987.32,0.00024349,2]
[315064852,1708801832947,-1188.68,0.00024382,2]
[315064854,1708801832956,-610.33,0.00024384,2]
[315064856,1708801832967,-4212.86,0.00024406,2]
[315064858,1708801832976,-296.78,0.00024492,2]
[315064860,1708801832985,-296.78,0.00024559,2]
[315064862,1708801832994,-296.78,0.00024626,2]
[315064864,1708801833008,-250.0,0.00024658,2]
[315064866,1708801833018,-250.0,0.00024658,2]
[315064869,1708801833028,-296.78,0.00024694,2]
[315064871,1708801833038,-375.21,0.00024705,2]
[315064873,1708801833047,-174.25,0.00024721,2]
[315064875,1708801833057,-3059.37,0.0002475,2]
[315064877,1708801833067,-296.78,0.00024761,2]
[315064879,1708801833077,-412.29600911,0.00024811,2]
[315064881,1708801833087,-11243.77,0.00024816,2]
[315064883,1708801833097,-296.78,0.00024828,2]
[315064885,1708801833107,-156.12,0.00024841,2]
[315064887,1708801833118,-296.78,0.00024895,2]
[315064889,1708801833128,-11200.3288,0.000249,2]
[315064891,1708801833138,-1149.94,0.00024911,2]
[315064893,1708801833149,-175.67,0.00024916,2]
[315064895,1708801833160,-1007.0,0.00024941,2]
[315064896,1708801833171,-296.78,0.00024962,2]
[315064897,1708801833183,-156.12,0.00024996,2]
[315064898,1708801833194,-1341.89,0.00024997,2]
[315064899,1708801833205,-1250.0,0.00025,3]
[315064900,1708801833221,-296.78,0.00025029,2]
[315064901,1708801833234,-206.0,0.00025052,7]
[315064902,1708801833246,-296.78,0.00025097,2]
[315064903,1708801833258,-3683.3655,0.000251,2]
[315064904,1708801833269,-242.78,0.000251,2]
[315064905,1708801833280,-156.12,0.00025152,2]
[315064906,1708801833291,-296.78,0.00025164,2]
[315064907,1708801833302,-35538.0,0.000252,2]
[315064908,1708801833314,-4364.0,0.000252,2]
[315064909,1708801833324,-296.78,0.00025231,2]
[315064910,1708801833335,-296.78,0.00025298,2]
[315064911,1708801833345,-156.12,0.00025307,2]
[315064912,1708801833356,-296.78,0.00025365,2]
[315064913,1708801833367,-150.0,0.00025381,2]
[315064914,1708801833377,-296.78,0.00025432,2]
[315064915,1708801833388,-152.29,0.0002545,2]
[315064916,1708801833398,-156.12,0.00025462,2]
[315064917,1708801833409,-296.78,0.000255,2]
[315064918,1708801833421,-534.0,0.00025558,2]
[315064919,1708801833431,-710.0,0.00025558,2]
[315064920,1708801833441,-1257.0,0.00025558,2]
[315064921,1708801833451,-1231.0,0.00025558,2]
[315064922,1708801833463,-216.0,0.00025558,2]
[315064923,1708801833472,-600.0,0.00025558,2]
[315064924,1708801833482,-1953.0,0.00025558,2]
[315064925,1708801833492,-1007.0,0.00025558,2]
[315064926,1708801833502,-430.0,0.00025558,2]
[315064927,1708801833511,-859.0,0.00025558,2]
[315064928,1708801833521,-276.0,0.00025558,2]
[315064929,1708801833531,-302.0,0.00025558,2]
[315064930,1708801833540,-338.0,0.00025558,2]
[315064931,1708801833550,-1009.973,0.00025558,2]
[315064932,1708801833561,-322.0,0.00025558,2]
[315064933,1708801833571,-2890.0,0.00025558,2]
[315064934,1708801833581,-1453.0,0.00025558,2]
[315064935,1708801833591,-390.0,0.00025558,2]
[315064936,1708801833601,-1924.416,0.00025558,2]
[315064937,1708801833610,-19886.0,0.00025558,2]
[315064938,1708801833620,-2280.0,0.00025558,2]
[315064939,1708801833630,-5917.568,0.00025558,2]
[315064940,1708801833639,-296.78,0.00025567,2]
[315064941,1708801833649,-412.2960091,0.00025606,2]
[315064942,1708801833867,-156.12,0.00025617,2]
[315064943,1708801833877,-296.78,0.00025634,2]
[315064944,1708801833886,-413.13,0.00025678,2]
[315064945,1708801833896,-150.0,0.0002569,2]
[315064946,1708801833906,-296.78,0.00025701,2]
[315064947,1708801833915,-1476.62,0.00025759,2]
[315064948,1708801833925,-296.78,0.00025768,2]
[315064949,1708801833935,-156.12,0.00025773,2]
[315064950,1708801833944,-150.0,0.00025778,2]
[315064951,1708801833954,-228.1199,0.000258,2]
[315064952,1708801833964,-856.3156,0.000258,2]
[315064953,1708801833974,-1075.7901,0.000258,2]
[315064954,1708801833984,-1000.0,0.000258,2]
[315064955,1708801833993,-2500.0,0.000258,2]
[315064956,1708801834003,-150.0,0.00025802,2]
[315064957,1708801834012,-249.818,0.00025802,2]
[315064958,1708801834022,-171.671,0.00025802,2]
[315064959,1708801834032,-1047.372,0.00025802,2]
[315064960,1708801834041,-955.0,0.00025802,2]
[315064961,1708801834051,-398.04299763,0.00025828,2]
[315064962,1708801834061,-100000.0,0.000259,2]
[315064963,1708801834070,-156.12,0.00025928,2]
[315064964,1708801834080,-165.44,0.00025963,2]
[315064965,1708801834091,-155.0,0.00026,2]
[315064966,1708801834101,-1152.25345678,0.00026,3]
[315064967,1708801834110,-150.0,0.00026079,2]
[315064968,1708801834120,-156.12,0.00026083,2]
[315064969,1708801834129,-398.04299761,0.0002611,3]
[315064970,1708801834139,-413.13,0.00026168,2]
[315064971,1708801834148,-150.0,0.00026169,2]
[315064972,1708801834158,-150.0,0.00026203,2]
[315064973,1708801834167,-156.12,0.00026238,2]
[315064974,1708801834177,-558.0,0.00026371,2]
[315064975,1708801834187,-267.0,0.00026371,2]
[315064976,1708801834196,-929.33299542,0.00026386,2]
[315064977,1708801834206,-398.04299761,0.00026391,3]
[315064978,1708801834216,-156.12,0.00026394,2]
[315064979,1708801834226,-2443.74096516,0.000264,2]
[315064980,1708801834236,-412.2960091,0.000264,2]
[315064981,1708801834246,-9915.67524809,0.00026491,2]
[315064982,1708801834255,-5536.22236218,0.00026491,2]
[315064983,1708801834266,-50000.0,0.00026491,2]
[315064984,1708801834275,-10539.0438934,0.00026491,2]
[315064985,1708801834284,-300.0,0.00026497,2]
[315064986,1708801834294,-300.0,0.00026497,2]
[315064987,1708801834304,-300.0,0.00026497,2]
[315064988,1708801834313,-300.0,0.00026497,2]
[315064989,1708801834323,-300.0,0.00026497,2]
[315064990,1708801834332,-300.0,0.00026497,2]